[Event "December 12 Early 2023"]
[Site "https://www.chess.com"]
[Date "2023.12.12"]
[Round "10"]
[White "Womacka, Mathias"]
[Black "Arslanov, Shamil"]
[Result "1-0"]
[Board "58"]
[TimeControl "180+1"]
[WhiteFideId "4611390"]
[BlackFideId "4192826"]
[WhiteElo "2527"]
[BlackElo "2717"]
[WhiteTeam "GER"]
[BlackTeam "RUS"]
[WhiteClock "0:00:14"]
[BlackClock "0:00:59"]

1. e4 {[%clk 0:03:00]}  d6 {[%clk 0:02:59]} 2. d4 {[%clk 0:02:59]}  e5 {[%clk 0:02:59]} 3. Nf3 {[%clk 0:02:56]}  Bg4 {[%clk 0:02:59]} 4. dxe5 {[%clk 0:02:54]}  Nc6 {[%clk 0:03:00]} 5. exd6 {[%clk 0:02:53]}  Bxd6 {[%clk 0:03:00]} 6. Be2 {[%clk 0:02:46]}  Qe7 {[%clk 0:03:00]} 7. h3 {[%clk 0:02:38]}  Bh5 {[%clk 0:02:56]} 8. Be3 {[%clk 0:01:54]}  O-O-O {[%clk 0:02:50]} 9. Nbd2 {[%clk 0:01:54]}  Nf6 {[%clk 0:02:49]} 10. Nh4 {[%clk 0:01:38]}  Bxe2 {[%clk 0:02:41]} 11. Qxe2 {[%clk 0:01:36]}  Nxe4 {[%clk 0:02:35]} 12. Qg4+ {[%clk 0:01:35]}  Kb8 {[%clk 0:02:05]} 13. Qxe4 {[%clk 0:01:34]}  Qf6 {[%clk 0:02:06]} 14. O-O-O {[%clk 0:01:25]}  Rhe8 {[%clk 0:01:53]} 15. Qa4 {[%clk 0:01:25]}  Re5 {[%clk 0:01:42]} 16. Nhf3 {[%clk 0:01:11]}  Ra5 {[%clk 0:01:35]} 17. Qb3 {[%clk 0:01:10]}  a6 {[%clk 0:01:31]} 18. Nc4 {[%clk 0:00:54]}  Rb5 {[%clk 0:01:31]} 19. Qc3 {[%clk 0:00:51]}  Qg6 {[%clk 0:01:31]} 20. Nxd6 {[%clk 0:00:48]}  cxd6 {[%clk 0:01:30]} 21. Nd4 {[%clk 0:00:42]}  Rc5 {[%clk 0:01:19]} 22. Nxc6+ {[%clk 0:00:35]}  Rxc6 {[%clk 0:01:20]} 23. Qd3 {[%clk 0:00:35]}  Qxg2 {[%clk 0:01:19]} 24. Rhg1 {[%clk 0:00:31]}  Qf3 {[%clk 0:01:18]} 25. Ba7+ {[%clk 0:00:28]}  Kxa7 {[%clk 0:01:17]} 26. Qxf3 {[%clk 0:00:28]}  Rdc8 {[%clk 0:01:17]} 27. c3 {[%clk 0:00:24]}  Rb6 {[%clk 0:01:12]} 28. Rxg7 {[%clk 0:00:22]}  Rc7 {[%clk 0:01:12]} 29. Rxf7 {[%clk 0:00:20]}  Rc5 {[%clk 0:01:12]} 30. Rg7 {[%clk 0:00:21]}  Ra5 {[%clk 0:01:11]} 31. Rf7 {[%clk 0:00:22]}  Rxa2 {[%clk 0:01:11]} 32. Qe3 {[%clk 0:00:18]}  Rxb2 {[%clk 0:01:08]} 33. Rxd6 {[%clk 0:00:19]}  Rb1+ {[%clk 0:01:00]} 34. Kc2 {[%clk 0:00:19]}  Rb2+ {[%clk 0:00:59]} 35. Kd3 {[%clk 0:00:16]}  a5 {[%clk 0:00:58]} 36. Rxb6 {[%clk 0:00:15]}  Rxb6 {[%clk 0:00:59]} 37. Rf6 {[%clk 0:00:15]}  a4 {[%clk 0:00:58]} 38. Qxb6+ {[%clk 0:00:15]}  Kb8 {[%clk 0:00:59]} 39. Rf8# {[%clk 0:00:14]} 1-0

[Event "December 12 Early 2023"]
[Site "https://www.chess.com"]
[Date "2023.12.12"]
[Round "10"]
[White "Erzhanov, Arman"]
[Black "Chinguun, Sumiya"]
[Result "1-0"]
[Board "60"]
[TimeControl "180+1"]
[WhiteFideId "4138821"]
[BlackFideId "4902572"]
[WhiteElo "2525"]
[BlackElo "2675"]
[WhiteTeam "KAZ"]
[BlackTeam "MGL"]
[WhiteClock "0:01:42"]
[BlackClock "0:01:49"]

1. e4 {[%clk 0:03:00]}  c5 {[%clk 0:02:59]} 2. Nf3 {[%clk 0:03:00]}  Nc6 {[%clk 0:03:00]} 3. Bb5 {[%clk 0:03:00]}  g6 {[%clk 0:03:00]} 4. O-O {[%clk 0:03:01]}  Bg7 {[%clk 0:03:00]} 5. c3 {[%clk 0:03:01]}  e5 {[%clk 0:02:55]} 6. d4 {[%clk 0:03:01]}  cxd4 {[%clk 0:02:54]} 7. cxd4 {[%clk 0:03:02]}  exd4 {[%clk 0:02:52]} 8. Bf4 {[%clk 0:03:02]}  Nge7 {[%clk 0:02:52]} 9. Bd6 {[%clk 0:03:01]}  O-O {[%clk 0:02:51]} 10. Nbd2 {[%clk 0:03:02]}  a6 {[%clk 0:02:48]} 11. Bc4 {[%clk 0:03:02]}  b5 {[%clk 0:02:48]} 12. Bd5 {[%clk 0:03:02]}  Nxd5 {[%clk 0:02:48]} 13. Bxf8 {[%clk 0:03:02]}  Qxf8 {[%clk 0:02:37]} 14. exd5 {[%clk 0:03:03]}  Nb4 {[%clk 0:02:36]} 15. Nb3 {[%clk 0:02:45]}  Bb7 {[%clk 0:02:31]} 16. Nbxd4 {[%clk 0:02:41]}  Nxd5 {[%clk 0:02:31]} 17. Qd2 {[%clk 0:02:40]}  Nf6 {[%clk 0:02:27]} 18. Rfe1 {[%clk 0:02:39]}  Ne4 {[%clk 0:02:27]} 19. Qf4 {[%clk 0:02:38]}  Nc5 {[%clk 0:02:24]} 20. Rad1 {[%clk 0:02:29]}  Ne6 {[%clk 0:02:24]} 21. Nxe6 {[%clk 0:02:23]}  dxe6 {[%clk 0:02:24]} 22. Rd7 {[%clk 0:02:22]}  Bc6 {[%clk 0:02:17]} 23. Rc7 {[%clk 0:02:22]}  Bxf3 {[%clk 0:02:16]} 24. Qxf3 {[%clk 0:02:20]}  Bxb2 {[%clk 0:02:16]} 25. Rxf7 {[%clk 0:02:20]}  Qxf7 {[%clk 0:02:14]} 26. Qxa8+ {[%clk 0:02:18]}  Kg7 {[%clk 0:02:14]} 27. Qxa6 {[%clk 0:02:17]}  Bd4 {[%clk 0:02:14]} 28. Re2 {[%clk 0:01:58]}  Qf4 {[%clk 0:02:02]} 29. g3 {[%clk 0:01:43]}  Qc1+ {[%clk 0:01:58]} 30. Kg2 {[%clk 0:01:43]}  Qc4 {[%clk 0:01:58]} 31. Qxe6 {[%clk 0:01:41]}  Qc5 {[%clk 0:01:56]} 32. Qe7+ {[%clk 0:01:41]}  Qxe7 {[%clk 0:01:55]} 33. Rxe7+ {[%clk 0:01:42]}  Kg8 {[%clk 0:01:49]} 34. Rb7 {[%clk 0:01:42]} 1-0

[Event "December 12 Early 2023"]
[Site "https://www.chess.com"]
[Date "2023.12.12"]
[Round "10"]
[White "Gavrilov, Maxim"]
[Black "Timerkhanov, Alexander"]
[Result "0-1"]
[Board "61"]
[TimeControl "180+1"]
[WhiteFideId "24271454"]
[BlackFideId "24177938"]
[WhiteElo "2515"]
[BlackElo "2668"]
[WhiteTeam "RUS"]
[BlackTeam "RUS"]
[WhiteClock "0:00:00"]
[BlackClock "0:01:35"]

1. d4 {[%clk 0:03:00]}  d5 {[%clk 0:02:59]} 2. c4 {[%clk 0:03:00]}  dxc4 {[%clk 0:02:57]} 3. e4 {[%clk 0:02:59]}  b5 {[%clk 0:02:57]} 4. a4 {[%clk 0:02:56]}  c6 {[%clk 0:02:57]} 5. axb5 {[%clk 0:02:49]}  cxb5 {[%clk 0:02:58]} 6. Nc3 {[%clk 0:02:49]}  a6 {[%clk 0:02:57]} 7. Nxb5 {[%clk 0:02:48]}  axb5 {[%clk 0:02:58]} 8. Rxa8 {[%clk 0:02:48]}  Bb7 {[%clk 0:02:59]} 9. Ra1 {[%clk 0:02:43]}  e6 {[%clk 0:02:59]} 10. Nf3 {[%clk 0:02:28]}  Nf6 {[%clk 0:02:53]} 11. e5 {[%clk 0:02:24]}  Ne4 {[%clk 0:02:53]} 12. Be2 {[%clk 0:02:14]}  Bb4+ {[%clk 0:02:52]} 13. Kf1 {[%clk 0:02:14]}  Nc6 {[%clk 0:02:41]} 14. Be3 {[%clk 0:02:12]}  O-O {[%clk 0:02:37]} 15. h4 {[%clk 0:02:10]}  Ne7 {[%clk 0:02:37]} 16. Ng5 {[%clk 0:01:53]}  Nf5 {[%clk 0:02:27]} 17. Nxe4 {[%clk 0:01:35]}  Bxe4 {[%clk 0:02:28]} 18. h5 {[%clk 0:01:08]}  f6 {[%clk 0:02:26]} 19. Kg1 {[%clk 0:01:03]}  Nxe3 {[%clk 0:02:19]} 20. fxe3 {[%clk 0:01:03]}  fxe5 {[%clk 0:02:19]} 21. dxe5 {[%clk 0:01:02]}  Qg5 {[%clk 0:02:20]} 22. Rh2 {[%clk 0:00:39]}  Bc5 {[%clk 0:01:51]} 23. Kh1 {[%clk 0:00:34]}  Bxe3 {[%clk 0:01:48]} 24. Qd6 {[%clk 0:00:29]}  Bd5 {[%clk 0:01:40]} 25. Bf3 {[%clk 0:00:21]}  Rxf3 {[%clk 0:01:36]} 26. Ra8+ {[%clk 0:00:08]}  Bxa8 {[%clk 0:01:35]} 27. Qxe6+ {[%clk 0:00:06]}  Rf7 {[%clk 0:01:35]} 28. Qc8+ {[%clk 0:00:03]}  Rf8 {[%clk 0:01:35]} 29. Qe6+ {[%clk 0:00:00]}  Kh8 {[%clk 0:01:35]} 0-1

[Event "December 12 Early 2023"]
[Site "https://www.chess.com"]
[Date "2023.12.12"]
[Round "10"]
[White "Hua, Lefong"]
[Black "Krzywda, Andrzej"]
[Result "1/2-1/2"]
[Board "62"]
[TimeControl "180+1"]
[WhiteFideId "2602253"]
[BlackFideId "1114565"]
[WhiteElo "2664"]
[BlackElo "2513"]
[WhiteTeam "CAN"]
[BlackTeam "POL"]
[WhiteClock "0:00:34"]
[BlackClock "0:00:14"]

1. d4 {[%clk 0:03:00]}  d5 {[%clk 0:02:57]} 2. c4 {[%clk 0:03:01]}  dxc4 {[%clk 0:02:57]} 3. Nf3 {[%clk 0:03:01]}  Nf6 {[%clk 0:02:58]} 4. e3 {[%clk 0:03:01]}  e6 {[%clk 0:02:59]} 5. Bxc4 {[%clk 0:03:02]}  c5 {[%clk 0:02:59]} 6. O-O {[%clk 0:03:02]}  Nc6 {[%clk 0:03:00]} 7. Nc3 {[%clk 0:03:01]}  a6 {[%clk 0:03:01]} 8. Bb3 {[%clk 0:03:01]}  b5 {[%clk 0:02:59]} 9. a3 {[%clk 0:02:56]}  Be7 {[%clk 0:02:49]} 10. Qe2 {[%clk 0:02:56]}  O-O {[%clk 0:02:43]} 11. Rd1 {[%clk 0:02:54]}  Qc7 {[%clk 0:02:42]} 12. h3 {[%clk 0:02:49]}  Bb7 {[%clk 0:02:40]} 13. dxc5 {[%clk 0:02:40]}  Bxc5 {[%clk 0:02:39]} 14. Bd2 {[%clk 0:02:41]}  Rad8 {[%clk 0:02:36]} 15. Rac1 {[%clk 0:02:41]}  Qb6 {[%clk 0:02:37]} 16. Ba2 {[%clk 0:02:35]}  Rfe8 {[%clk 0:02:23]} 17. Be1 {[%clk 0:02:24]}  Bf8 {[%clk 0:02:21]} 18. Bb1 {[%clk 0:02:16]}  g6 {[%clk 0:02:16]} 19. Ne4 {[%clk 0:02:07]}  Nxe4 {[%clk 0:02:11]} 20. Bxe4 {[%clk 0:02:08]}  Bg7 {[%clk 0:02:05]} 21. Rxd8 {[%clk 0:01:56]}  Rxd8 {[%clk 0:01:58]} 22. Bc3 {[%clk 0:01:56]}  Bxc3 {[%clk 0:01:50]} 23. Rxc3 {[%clk 0:01:56]}  Ne7 {[%clk 0:01:50]} 24. Bxb7 {[%clk 0:01:51]}  Qxb7 {[%clk 0:01:51]} 25. Qc2 {[%clk 0:01:50]}  Nd5 {[%clk 0:01:49]} 26. Rc5 {[%clk 0:01:46]}  Rd7 {[%clk 0:01:17]} 27. Rc8+ {[%clk 0:01:36]}  Kg7 {[%clk 0:01:17]} 28. Qc6 {[%clk 0:01:35]}  Qxc6 {[%clk 0:00:49]} 29. Rxc6 {[%clk 0:01:35]}  Ra7 {[%clk 0:00:44]} 30. Nd4 {[%clk 0:01:24]}  e5 {[%clk 0:00:42]} 31. Nb3 {[%clk 0:01:18]}  Rc7 {[%clk 0:00:27]} 32. Rxa6 {[%clk 0:01:10]}  Rc2 {[%clk 0:00:27]} 33. Rd6 {[%clk 0:01:03]}  Rxb2 {[%clk 0:00:21]} 34. Rxd5 {[%clk 0:00:59]}  Rxb3 {[%clk 0:00:19]} 35. Rxe5 {[%clk 0:01:00]}  Rxa3 {[%clk 0:00:19]} 36. Rxb5 {[%clk 0:01:00]}  Ra1+ {[%clk 0:00:19]} 37. Kh2 {[%clk 0:01:00]}  Ra2 {[%clk 0:00:20]} 38. Kg3 {[%clk 0:00:59]}  h5 {[%clk 0:00:20]} 39. h4 {[%clk 0:00:59]}  Ra7 {[%clk 0:00:20]} 40. Rb2 {[%clk 0:00:56]}  Re7 {[%clk 0:00:21]} 41. Kf4 {[%clk 0:00:57]}  Ra7 {[%clk 0:00:21]} 42. f3 {[%clk 0:00:57]}  Ra4+ {[%clk 0:00:22]} 43. e4 {[%clk 0:00:57]}  Ra7 {[%clk 0:00:23]} 44. g4 {[%clk 0:00:56]}  Re7 {[%clk 0:00:23]} 45. g5 {[%clk 0:00:55]}  Ra7 {[%clk 0:00:23]} 46. Rb3 {[%clk 0:00:55]}  Ra1 {[%clk 0:00:23]} 47. Kg3 {[%clk 0:00:54]}  Rg1+ {[%clk 0:00:23]} 48. Kh3 {[%clk 0:00:54]}  Rh1+ {[%clk 0:00:24]} 49. Kg3 {[%clk 0:00:54]}  Rg1+ {[%clk 0:00:24]} 50. Kh2 {[%clk 0:00:55]}  Ra1 {[%clk 0:00:23]} 51. Kg2 {[%clk 0:00:55]}  Ra2+ {[%clk 0:00:23]} 52. Kg3 {[%clk 0:00:55]}  Ra1 {[%clk 0:00:24]} 53. Rb2 {[%clk 0:00:56]}  Rg1+ {[%clk 0:00:24]} 54. Rg2 {[%clk 0:00:56]}  Ra1 {[%clk 0:00:24]} 55. Rh2 {[%clk 0:00:55]}  Rg1+ {[%clk 0:00:24]} 56. Kf4 {[%clk 0:00:55]}  Ra1 {[%clk 0:00:24]} 57. Kg3 {[%clk 0:00:49]}  Ra3 {[%clk 0:00:24]} 58. Re2 {[%clk 0:00:49]}  Ra1 {[%clk 0:00:24]} 59. f4 {[%clk 0:00:48]}  Rg1+ {[%clk 0:00:24]} 60. Rg2 {[%clk 0:00:48]}  Re1 {[%clk 0:00:23]} 61. e5 {[%clk 0:00:45]}  Re4 {[%clk 0:00:23]} 62. Rc2 {[%clk 0:00:42]}  Re3+ {[%clk 0:00:23]} 63. Kg2 {[%clk 0:00:42]}  Re4 {[%clk 0:00:23]} 64. Kf3 {[%clk 0:00:42]}  Re1 {[%clk 0:00:22]} 65. Rc7 {[%clk 0:00:42]}  Kf8 {[%clk 0:00:21]} 66. Rc2 {[%clk 0:00:39]}  Rh1 {[%clk 0:00:20]} 67. Kg3 {[%clk 0:00:39]}  Rg1+ {[%clk 0:00:19]} 68. Rg2 {[%clk 0:00:39]}  Re1 {[%clk 0:00:20]} 69. Rh2 {[%clk 0:00:38]}  Re3+ {[%clk 0:00:20]} 70. Kf2 {[%clk 0:00:38]}  Ra3 {[%clk 0:00:20]} 71. Rh1 {[%clk 0:00:37]}  Ra2+ {[%clk 0:00:20]} 72. Kf3 {[%clk 0:00:37]}  Ra3+ {[%clk 0:00:21]} 73. Kg2 {[%clk 0:00:37]}  Ra2+ {[%clk 0:00:21]} 74. Kg3 {[%clk 0:00:37]}  Ra3+ {[%clk 0:00:21]} 75. Kf2 {[%clk 0:00:38]}  Ra2+ {[%clk 0:00:22]} 76. Ke3 {[%clk 0:00:38]}  Ra3+ {[%clk 0:00:22]} 77. Ke4 {[%clk 0:00:39]}  Ra4+ {[%clk 0:00:22]} 78. Ke3 {[%clk 0:00:39]}  Ra3+ {[%clk 0:00:23]} 79. Kd4 {[%clk 0:00:40]}  Ra4+ {[%clk 0:00:23]} 80. Kd5 {[%clk 0:00:39]}  Rxf4 {[%clk 0:00:23]} 81. Rh2 {[%clk 0:00:40]}  Ra4 {[%clk 0:00:20]} 82. Rf2 {[%clk 0:00:37]}  Kg7 {[%clk 0:00:20]} 83. Rh2 {[%clk 0:00:37]}  Rb4 {[%clk 0:00:20]} 84. Kc5 {[%clk 0:00:36]}  Ra4 {[%clk 0:00:20]} 85. Kd6 {[%clk 0:00:36]}  Ra6+ {[%clk 0:00:20]} 86. Kd5 {[%clk 0:00:36]}  Ra5+ {[%clk 0:00:20]} 87. Kd6 {[%clk 0:00:37]}  Ra6+ {[%clk 0:00:20]} 88. Kd5 {[%clk 0:00:38]}  Ra4 {[%clk 0:00:21]} 89. Kd6 {[%clk 0:00:38]}  Rd4+ {[%clk 0:00:20]} 90. Kc5 {[%clk 0:00:38]}  Rd1 {[%clk 0:00:20]} 91. Rf2 {[%clk 0:00:35]}  Rh1 {[%clk 0:00:15]} 92. Rf4 {[%clk 0:00:35]}  Rd1 {[%clk 0:00:14]} 93. Kc6 {[%clk 0:00:35]}  Rd2 {[%clk 0:00:14]} 94. Kc5 {[%clk 0:00:34]}  Rd3 {[%clk 0:00:14]} 95. Kc6 {[%clk 0:00:35]}  Rd1 {[%clk 0:00:14]} 96. Kc5 {[%clk 0:00:35]}  Rd8 {[%clk 0:00:15]} 97. Kc4 {[%clk 0:00:35]}  Rd1 {[%clk 0:00:15]} 98. Kc5 {[%clk 0:00:35]}  Rg1 {[%clk 0:00:14]} 99. Kd5 {[%clk 0:00:34]}  Rd1+ {[%clk 0:00:14]} 100. Ke4 {[%clk 0:00:33]}  Re1+ {[%clk 0:00:14]} 101. Kd5 {[%clk 0:00:34]}  Rd1+ {[%clk 0:00:14]} 102. Ke4 {[%clk 0:00:34]}  Re1+ {[%clk 0:00:14]} 103. Kd5 {[%clk 0:00:34]}  Rd1+ {[%clk 0:00:14]} 1/2-1/2

[Event "December 12 Early 2023"]
[Site "https://www.chess.com"]
[Date "2023.12.12"]
[Round "10"]
[White "JG-17"]
[Black "Novikov, Evgenij"]
[Result "1-0"]
[Board "67"]
[TimeControl "180+1"]
[BlackFideId "4125380"]
[WhiteElo "2485"]
[BlackElo "2604"]
[BlackTeam "RUS"]
[WhiteClock "0:00:20"]
[BlackClock "0:00:00"]

1. e4 {[%clk 0:03:00]}  c5 {[%clk 0:02:58]} 2. Nf3 {[%clk 0:03:00]}  g6 {[%clk 0:02:56]} 3. d4 {[%clk 0:02:57]}  cxd4 {[%clk 0:02:57]} 4. Nxd4 {[%clk 0:02:58]}  Bg7 {[%clk 0:02:56]} 5. c4 {[%clk 0:02:58]}  Nf6 {[%clk 0:02:55]} 6. Nc3 {[%clk 0:02:58]}  O-O {[%clk 0:02:55]} 7. Be2 {[%clk 0:02:58]}  b6 {[%clk 0:02:37]} 8. O-O {[%clk 0:02:57]}  Bb7 {[%clk 0:02:37]} 9. f3 {[%clk 0:02:56]}  d6 {[%clk 0:02:25]} 10. Be3 {[%clk 0:02:53]}  Nc6 {[%clk 0:02:22]} 11. Rc1 {[%clk 0:02:43]}  Nxd4 {[%clk 0:02:19]} 12. Bxd4 {[%clk 0:02:43]}  Rc8 {[%clk 0:02:16]} 13. Nb5 {[%clk 0:02:35]}  a6 {[%clk 0:02:09]} 14. Nc3 {[%clk 0:02:35]}  Nd7 {[%clk 0:02:05]} 15. Bxg7 {[%clk 0:02:34]}  Kxg7 {[%clk 0:02:06]} 16. b4 {[%clk 0:02:33]}  Ne5 {[%clk 0:01:55]} 17. Qd4 {[%clk 0:02:33]}  f6 {[%clk 0:01:49]} 18. f4 {[%clk 0:02:32]}  Nf7 {[%clk 0:01:33]} 19. Bg4 {[%clk 0:02:26]}  e5 {[%clk 0:01:22]} 20. Qd3 {[%clk 0:02:05]}  Rc7 {[%clk 0:01:17]} 21. Be6 {[%clk 0:02:01]}  exf4 {[%clk 0:01:15]} 22. Bxf7 {[%clk 0:02:01]}  Rfxf7 {[%clk 0:01:13]} 23. Rxf4 {[%clk 0:02:01]}  Qc8 {[%clk 0:01:05]} 24. Ne2 {[%clk 0:01:50]}  b5 {[%clk 0:00:57]} 25. Qxd6 {[%clk 0:01:47]}  Rxc4 {[%clk 0:00:54]} 26. Rcf1 {[%clk 0:01:47]}  Rc6 {[%clk 0:00:50]} 27. Qd3 {[%clk 0:01:40]}  Re6 {[%clk 0:00:47]} 28. Nd4 {[%clk 0:01:33]}  Re5 {[%clk 0:00:44]} 29. Qg3 {[%clk 0:01:27]}  Qe8 {[%clk 0:00:28]} 30. Nf5+ {[%clk 0:01:24]}  Rxf5 {[%clk 0:00:16]} 31. exf5 {[%clk 0:01:17]}  g5 {[%clk 0:00:16]} 32. Rd4 {[%clk 0:01:15]}  Qe7 {[%clk 0:00:15]} 33. Rfd1 {[%clk 0:01:14]}  Qe2 {[%clk 0:00:14]} 34. Qf2 {[%clk 0:01:12]}  Qe5 {[%clk 0:00:11]} 35. Rd7 {[%clk 0:01:10]}  Bc6 {[%clk 0:00:10]} 36. Rxf7+ {[%clk 0:01:09]}  Kxf7 {[%clk 0:00:11]} 37. Qa7+ {[%clk 0:01:06]}  Kg8 {[%clk 0:00:10]} 38. Rd8+ {[%clk 0:00:58]}  Be8 {[%clk 0:00:10]} 39. Qf2 {[%clk 0:00:44]}  Qe7 {[%clk 0:00:08]} 40. Qd2 {[%clk 0:00:42]}  Qa7+ {[%clk 0:00:06]} 41. Qd4 {[%clk 0:00:41]}  Qe7 {[%clk 0:00:05]} 42. h3 {[%clk 0:00:35]}  Kg7 {[%clk 0:00:05]} 43. Rd6 {[%clk 0:00:33]}  Bf7 {[%clk 0:00:04]} 44. Rxa6 {[%clk 0:00:33]}  h5 {[%clk 0:00:03]} 45. Ra7 {[%clk 0:00:34]}  Qe1+ {[%clk 0:00:02]} 46. Kh2 {[%clk 0:00:34]}  h4 {[%clk 0:00:01]} 47. Qd3 {[%clk 0:00:28]}  Qe8 {[%clk 0:00:01]} 48. Rd7 {[%clk 0:00:23]}  Qe5+ {[%clk 0:00:02]} 49. Kg1 {[%clk 0:00:22]}  Qa1+ {[%clk 0:00:01]} 50. Qd1 {[%clk 0:00:20]}  Qxa2 {[%clk 0:00:01]} 51. Rd6 {[%clk 0:00:19]}  Qc4 {[%clk 0:00:01]} 52. Qd4 {[%clk 0:00:20]}  Qc1+ {[%clk 0:00:01]} 53. Kh2 {[%clk 0:00:20]}  Qf4+ {[%clk 0:00:01]} 54. Qxf4 {[%clk 0:00:20]}  gxf4 {[%clk 0:00:02]} 55. Rd4 {[%clk 0:00:20]}  Kh6 {[%clk 0:00:01]} 56. Rxf4 {[%clk 0:00:21]}  Kg5 {[%clk 0:00:02]} 57. Rf2 {[%clk 0:00:21]}  Bc4 {[%clk 0:00:01]} 58. Kg1 {[%clk 0:00:22]}  Bd3 {[%clk 0:00:02]} 59. Rd2 {[%clk 0:00:19]}  Bxf5 {[%clk 0:00:01]} 60. Rd5 {[%clk 0:00:19]}  Kf4 {[%clk 0:00:01]} 61. Rxb5 {[%clk 0:00:20]}  Bd3 {[%clk 0:00:01]} 62. Rb6 {[%clk 0:00:20]}  f5 {[%clk 0:00:01]} 63. Kf2 {[%clk 0:00:20]}  Ke5 {[%clk 0:00:00]} 64. Rh6 {[%clk 0:00:20]} 1-0

[Event "December 12 Early 2023"]
[Site "https://www.chess.com"]
[Date "2023.12.12"]
[Round "10"]
[White "Bogaudinov, Rushan"]
[Black "Iskusnyh, Sergei"]
[Result "0-1"]
[Board "70"]
[TimeControl "180+1"]
[WhiteFideId "4129288"]
[BlackFideId "4120027"]
[WhiteElo "2449"]
[BlackElo "2580"]
[WhiteTeam "RUS"]
[BlackTeam "RUS"]
[WhiteClock "0:00:01"]
[BlackClock "0:00:10"]

1. e4 {[%clk 0:03:00]}  e6 {[%clk 0:02:59]} 2. Nf3 {[%clk 0:02:52]}  d5 {[%clk 0:02:59]} 3. e5 {[%clk 0:02:52]}  c5 {[%clk 0:02:58]} 4. b4 {[%clk 0:02:52]}  d4 {[%clk 0:02:53]} 5. Bb2 {[%clk 0:02:46]}  Nc6 {[%clk 0:02:51]} 6. bxc5 {[%clk 0:02:34]}  Bxc5 {[%clk 0:02:49]} 7. Bd3 {[%clk 0:02:33]}  Nge7 {[%clk 0:02:45]} 8. O-O {[%clk 0:02:33]}  Ng6 {[%clk 0:02:41]} 9. Re1 {[%clk 0:02:30]}  O-O {[%clk 0:02:40]} 10. Na3 {[%clk 0:02:29]}  a6 {[%clk 0:02:30]} 11. Qe2 {[%clk 0:01:49]}  b5 {[%clk 0:02:19]} 12. g3 {[%clk 0:01:43]}  Bb7 {[%clk 0:02:16]} 13. h4 {[%clk 0:01:43]}  h6 {[%clk 0:01:47]} 14. h5 {[%clk 0:01:41]}  Nge7 {[%clk 0:01:47]} 15. Qe4 {[%clk 0:01:34]}  Nf5 {[%clk 0:01:47]} 16. Qg4 {[%clk 0:01:24]}  Nce7 {[%clk 0:01:30]} 17. Be4 {[%clk 0:01:17]}  Bxe4 {[%clk 0:01:29]} 18. Qxe4 {[%clk 0:01:18]}  d3 {[%clk 0:01:04]} 19. g4 {[%clk 0:00:56]}  Qb6 {[%clk 0:00:44]} 20. gxf5 {[%clk 0:00:39]}  Bxf2+ {[%clk 0:00:43]} 21. Kg2 {[%clk 0:00:33]}  Bxe1 {[%clk 0:00:42]} 22. Rxe1 {[%clk 0:00:31]}  Nxf5 {[%clk 0:00:40]} 23. Qxd3 {[%clk 0:00:27]}  Rfd8 {[%clk 0:00:39]} 24. Qe4 {[%clk 0:00:21]}  Rac8 {[%clk 0:00:38]} 25. d4 {[%clk 0:00:20]}  Qa5 {[%clk 0:00:26]} 26. Re2 {[%clk 0:00:19]}  b4 {[%clk 0:00:25]} 27. Nb1 {[%clk 0:00:12]}  Qxa2 {[%clk 0:00:25]} 28. c3 {[%clk 0:00:12]}  bxc3 {[%clk 0:00:23]} 29. Nxc3 {[%clk 0:00:12]}  Qb3 {[%clk 0:00:21]} 30. Nb1 {[%clk 0:00:07]}  a5 {[%clk 0:00:20]} 31. Ba1 {[%clk 0:00:05]}  a4 {[%clk 0:00:19]} 32. Nbd2 {[%clk 0:00:05]}  Qa2 {[%clk 0:00:17]} 33. Qb1 {[%clk 0:00:02]}  Qxb1 {[%clk 0:00:16]} 34. Nxb1 {[%clk 0:00:03]}  Rc1 {[%clk 0:00:16]} 35. Rb2 {[%clk 0:00:02]}  a3 {[%clk 0:00:15]} 36. Rb3 {[%clk 0:00:02]}  a2 {[%clk 0:00:15]} 37. Nc3 {[%clk 0:00:02]}  Rxa1 {[%clk 0:00:15]} 38. Ra3 {[%clk 0:00:03]}  Nxd4 {[%clk 0:00:14]} 39. Nxd4 {[%clk 0:00:03]}  Rxd4 {[%clk 0:00:14]} 40. Ra8+ {[%clk 0:00:03]}  Kh7 {[%clk 0:00:14]} 41. Nb5 {[%clk 0:00:03]}  Rb4 {[%clk 0:00:13]} 42. Nd6 {[%clk 0:00:03]}  Rb2+ {[%clk 0:00:13]} 43. Kf3 {[%clk 0:00:03]}  g6 {[%clk 0:00:13]} 44. Nxf7 {[%clk 0:00:03]}  Rf1+ {[%clk 0:00:13]} 45. Ke4 {[%clk 0:00:02]}  Rxf7 {[%clk 0:00:13]} 46. hxg6+ {[%clk 0:00:02]}  Kxg6 {[%clk 0:00:13]} 47. Rg8+ {[%clk 0:00:02]}  Kh5 {[%clk 0:00:12]} 48. Rg1 {[%clk 0:00:03]}  Rb1 {[%clk 0:00:11]} 49. Rg3 {[%clk 0:00:02]}  a1=Q {[%clk 0:00:11]} 50. Rh3+ {[%clk 0:00:03]}  Kg6 {[%clk 0:00:11]} 51. Rg3+ {[%clk 0:00:03]}  Kh7 {[%clk 0:00:11]} 52. Rd3 {[%clk 0:00:03]}  Re1+ {[%clk 0:00:11]} 53. Re3 {[%clk 0:00:03]}  Qa4+ {[%clk 0:00:10]} 54. Kd3 {[%clk 0:00:04]}  Rd7+ {[%clk 0:00:09]} 55. Kc3 {[%clk 0:00:02]}  Rc1+ {[%clk 0:00:09]} 56. Kb2 {[%clk 0:00:03]}  Rc2+ {[%clk 0:00:09]} 57. Kb1 {[%clk 0:00:01]}  Rd1# {[%clk 0:00:10]} 0-1